Cogmind - Beta 17 @@@ ROGUE MODE // 2026.06.30 @ 17:09:59 Player: foolish jester Result: Self-destructed Performance ------------- Evolutions (2) 1000 Regions Visited (6) 1200 Robots Destroyed (13) 65 Value Destroyed (1088) 1088 Prototype IDs (0) 0 Alien Tech Used (0) 0 Bonus (200) 200 TOTAL SCORE: 3553 Bonus ------- Entered Garrisons 200 Cogmind --------- Core Integrity 158/550 Matter 282/300 Energy 150/150 System Corruption 25% Temperature Cool (3) Movement Hovering (120) Ox1 Location -8/Garrison Parts ------- > --- POWER (1) -------- Light Angular Momentum Engine > --- PROPULSION (4) --- Gravmag System Flight Unit > --- UTILITY (4) ------ Improved Heat Sink Targeting Computer Target Analyzer > --- WEAPON (2) ------- Shock Rifle > --- INVENTORY (5) ---- Relay Coupler [Grunt] (29) Relay Coupler [Sentry] (21) Shock Rifle Beamcaster Light EM Pulse Cannon Peak State ------------ > --- POWER ------------ Light Angular Momentum Engine > --- PROPULSION ------- Gravmag System Gravmag System Flight Unit > --- UTILITY ---------- Improved Heat Sink Targeting Computer Target Analyzer > --- WEAPON ----------- Shock Rifle Beamcaster > --- INVENTORY -------- Relay Coupler [Grunt] Relay Coupler [Sentry] Shock Rifle Light EM Pulse Cannon [Rating: 30] Favorites ----------- Power Light Angular Momentum Engine Engine Light Angular Momentum Engine Power Core Light Nuclear Core Propulsion Wheel Treads Light Treads Wheel Wheel Hover Unit Gravmag System Flight Unit Flight Unit Utility Seismic Detector Device Seismic Detector Storage Large Storage Unit Processor Targeting Computer Weapon Light EM Pulse Cannon Energy Gun Shock Rifle Energy Cannon Light EM Pulse Cannon Ballistic Gun Assault Rifle Build | -11 -10 -10 -10 -9 -8 -8 ------- Run | Yrd Mat Min Exi Min Mat Gar Slots Evolved 4 | . . . . . 4 . Power . | . . . . . . . Propulsion 2 | . . . . . 2 . Utility 2 | . . . . . 2 . Weapon . | . . . . . . . Parts Attached 28 | 8 4 2 1 . . 13 Power 5 | 2 1 1 . . . 1 Engine 4 | 2 . 1 . . . 1 Core 1 | . 1 . . . . . Reactor . | . . . . . . . Propulsion 7 | 2 1 . . . . 4 Treads 2 | 1 . . . . . 1 Leg . | . . . . . . . Wheel 2 | 1 1 . . . . . Hover 2 | . . . . . . 2 Flight 1 | . . . . . . 1 Utility 7 | 2 . 1 1 . . 3 Device 2 | 1 . . . . . 1 Storage 3 | 1 . 1 1 . . . Processor 2 | . . . . . . 2 Hackware . | . . . . . . . Protection . | . . . . . . . Artifact . | . . . . . . . Weapon 9 | 2 2 . . . . 5 Energy Gun 5 | . . . . . . 5 Energy Cannon 2 | . 2 . . . . . Ballistic Gun 2 | 2 . . . . . . Ballistic Cannon . | . . . . . . . Launcher . | . . . . . . . Special Weapon . | . . . . . . . Impact Weapon . | . . . . . . . Slashing Weapon . | . . . . . . . Piercing Weapon . | . . . . . . . Special Melee Weapon . | . . . . . . . Unidentified Prototypes . | . . . . . . . Corrupted Parts 2 | . . . . . . 2 System Corruption 14 | . . . . . . 14 Parts Lost 12 | . . . . . . 12 Power 1 | . . . . . . 1 Propulsion 5 | . . . . . . 5 Utility 1 | . . . . . . 1 Weapon 5 | . . . . . . 5 Highest Loss Streak 10 | . . . . . . 10 To Critical Strikes . | . . . . . . . Average Backups 7 | 5 7 7 8 8 8 4 Power . | . . . 1 1 1 . Propulsion 2 | 3 2 2 3 3 3 . Utility . | . 1 1 1 1 1 1 Weapon 2 | . 2 3 3 3 3 2 Tool/Special . | . . . . . . . Unused Backups 10 | . 4 . . . . 6 Power . | . . . . . . . Propulsion 2 | . 2 . . . . . Utility 5 | . 1 . . . . 4 Weapon 3 | . 1 . . . . 2 Tool/Special . | . . . . . . . Average Slot Usage (%) 94 | . 100 100 96 100 63 61 Engine 10 | . 4 9 14 14 9 6 Core 2 | . 9 4 . . . . Treads 11 | . 8 11 14 14 9 5 Wheel 14 | . 19 16 14 14 9 4 Device 13 | . 14 14 14 14 9 7 Storage 12 | . 14 14 14 14 9 5 Energy Cannon 23 | . 25 28 24 28 18 5 Peak Build Rating 30 | 7 12 14 14 14 14 30 Average Rating 12 | 5 11 13 13 14 14 16 On Entrance 10 | . 7 12 14 14 14 14 Avg Prop Armor Cover (%) 11 | 12 11 11 11 11 11 7 Naked Turns . | . . . . . . . Heaviest Build 38 | 13 19 28 38 38 38 38 Greatest Support 26 | 10 26 26 10 10 10 26 Greatest Overweight (x) 9 | 1 1 2 3 3 3 9 Average Overweight (x) 1 | . . 1 2 3 3 . Largest Inventory Capacity 15 | 8 8 10 15 15 15 15 Average Capacity 11 | 7 8 8 14 15 15 10 Most Carried 10 | 8 8 8 10 8 8 7 Average Carried 7 | 5 7 7 8 8 8 4 Final Capacity 15 | 8 8 10 15 15 15 5 Final Carried 8 | 7 7 8 8 8 8 5 Class Distribution -------------------- 93% | Mutant 6% | Scavenger-Mutant Dominant Class ---------------- Mutant | -10/Materials Mutant | -10/Mines Mutant | -10/Exiles Mutant | -9/Mines Mutant | -8/Materials Scavenger-Mutant | -8/Garrison Resources | -11 -10 -10 -10 -9 -8 -8 ----------- Run | Yrd Mat Min Exi Min Mat Gar Matter Collected 538 | 277 103 30 . 30 . 98 Remotely . | . . . . . . . Salvage Created 549 | 75 201 142 . . . 131 Parts 29 | 5 4 9 . . . 11 Haulers Intercepted . | . . . . . . . Recyclers Shooed 1 | . . 1 . . . . Parts Field Recycled . | . . . . . . . Retrieved Matter . | . . . . . . . Parts Self-Destructed . | . . . . . . . Prevented . | . . . . . . . Parts Restored . | . . . . . . . Kills | -11 -10 -10 -10 -9 -8 -8 ------- Run | Yrd Mat Min Exi Min Mat Gar Combat Hostiles Destroyed 9 | . 3 3 . . . 3 Guns 3 | . . . . . . 3 Cannons 6 | . 3 3 . . . . Classes Destroyed 6 | 2 3 . . . . 1 Tunneler 1 | 1 . . . . . . Recycler 1 | 1 . . . . . . Operator 1 | . 1 . . . . . Watcher 1 | . 1 . . . . . Grunt 6 | . 3 3 . . . . Programmer 3 | . . . . . . 3 Best Kill Streak 2 | 1 2 1 . . . 2 Combat Bots Only 2 | . 2 1 . . . 2 Max Kills in Single Turn 1 | 1 1 1 . . . 1 Gunslinging . | . . . . . . . Exploded . | . . . . . . . Melee . | . . . . . . . Uniques/NPCs Destroyed . | . . . . . . . Combat | -11 -10 -10 -10 -9 -8 -8 -------- Run | Yrd Mat Min Exi Min Mat Gar Hostile Shots Fired 114 | . 4 11 . . . 99 Missed 26 | . 3 4 . . . 19 Hits 88 | . 1 7 . . . 80 Projectile 88 | . 1 7 . . . 80 AOE 2 | . . . . . . 2 Critical Strikes 3 | . . . . . . 3 Damage Taken 1468 | . 59 91 . . . 1318 Core 416 | . 24 . . . . 392 Absorbed by Shields . | . . . . . . . Core Remaining (%) 95 | 100 . . . 90 . . Volleys Fired 61 | 10 19 7 . . . 25 Largest 2 | 2 2 2 . . . 2 Hottest 112 | 40 112 112 . . . 112 Shots Fired 88 | 20 21 12 . . . 35 Gun 46 | 20 . . . . . 26 Cannon 42 | . 21 12 . . . 9 Launcher . | . . . . . . . Special . | . . . . . . . Kinetic 20 | 20 . . . . . . Thermal 11 | . . . . . . 11 Explosive . | . . . . . . . Electromagnetic 57 | . 21 12 . . . 24 Robot Hit Streak 8 | 5 8 5 . . . 7 Robot Miss Streak 3 | 2 3 1 . . . 2 Penetration Max . | . . . . . . . Secondary Targets . | . . . . . . . Shots Hit Robots 48 | 11 13 6 . . . 18 Core Hits 23 | 3 7 4 . . . 9 Critical Kills . | . . . . . . . Critical Parts Destroyed . | . . . . . . . Critical Strikes 4 | . . . . . . 4 Burn 2 | . . . . . . 2 Corrupt 2 | . . . . . . 2 Melee Attacks . | . . . . . . . Impact . | . . . . . . . Slashing . | . . . . . . . Piercing . | . . . . . . . Sneak Attacks . | . . . . . . . Combat Hostiles . | . . . . . . . Follow-up Attacks . | . . . . . . . Damage Inflicted 1005 | 137 467 140 . . . 261 Guns 375 | 137 . . . . . 238 Cannons 518 | . 356 140 . . . 22 Explosions 111 | . 111 . . . . . Melee . | . . . . . . . Ramming 1 | . . . . . . 1 Kinetic 137 | 137 . . . . . . Thermal 292 | . 111 . . . . 181 Explosive . | . . . . . . . Electromagnetic 575 | . 356 140 . . . 79 Impact . | . . . . . . . Slashing . | . . . . . . . Piercing . | . . . . . . . Highest Corruption 25 | . . . . . . 25 Average Corruption 19 | . . . . . . 19 Corruption Purged . | . . . . . . . Corruption Blocked . | . . . . . . . Effects 9 | . . . . . . 9 Message Errors 1 | . . . . . . 1 Matter Fused 2 | . . . . . . 2 Energy Discharges 2 | . . . . . . 2 Parts Rejected 1 | . . . . . . 1 Alerts 1 | . . . . . . 1 Weapon Failures 2 | . . . . . . 2 Overload Shots . | . . . . . . . Overflow Damage 8 | . 8 . . . . . Projectiles 8 | . 8 . . . . . Explosions . | . . . . . . . Melee . | . . . . . . . Knockbacks . | . . . . . . . Impact . | . . . . . . . Kinetic . | . . . . . . . Secondary . | . . . . . . . Self-Inflicted Damage 49 | . 49 . . . . . Shots 2 | . 2 . . . . . Rammed 1 | . . . . . . 1 Targets Rammed 1 | . . . . . . 1 Kicked . | . . . . . . . Crushed . | . . . . . . . Highest Temperature 176 | . 82 171 . . . 176 Average Temperature 48 | . 26 67 . . . 56 Received Heat Transfer 183 | . 6 54 . . . 123 Siege Activations . | . . . . . . . Martial Activations . | . . . . . . . Shielding Activations . | . . . . . . . Robots Disrupted . | . . . . . . . Combat Hostiles . | . . . . . . . Robots Corrupted . | . . . . . . . Combat Hostiles . | . . . . . . . Parts Fried 4 | . 4 . . . . . Impact Corruptions . | . . . . . . . Robots Melted . | . . . . . . . Combat Hostiles . | . . . . . . . Parts Melted . | . . . . . . . Heat Transferred 607 | . 200 . . . . 407 Parts Sabotaged . | . . . . . . . Parts Stolen . | . . . . . . . Parts Stripped . | . . . . . . . Power Chain Reactions 3 | . 3 . . . . . Alert | -11 -10 -10 -10 -9 -8 -8 ------- Run | Yrd Mat Min Exi Min Mat Gar Maximum Alert Level . | . . . . . . . Low Security (%) 100 | 100 100 100 . 100 100 100 Level 1 . | . . . . . . . Level 2 . | . . . . . . . Level 3 . | . . . . . . . Level 4 . | . . . . . . . Level 5 . | . . . . . . . High Security . | . . . . . . . Max Security . | . . . . . . . Peak Influence 115 | 5 40 45 . . . 115 Initial . | . . . . . . . Average 17 | . 12 8 . . . 64 Influence Increases 539 | 10 145 155 . . 4 225 Destroy 0b10 Robot/C 180 | . 60 60 . . . 60 Destroy 0b10 Robot/NC 20 | 10 10 . . . . . Destroy Leader 42 | . 22 20 . . . . Successful Hack 22 | . 18 . . . 4 . Disable Machine 30 | . 30 . . . . . Anti-Garrison Action 150 | . . . . . . 150 Destroy Structure 5 | . 5 . . . . . Lose Combat Pursuer 90 | . . 75 . . . 15 Influence Decreases 434 | 10 145 125 30 . 4 120 Entered New Map 30 | . . . 30 . . . Time Decay 284 | 10 145 125 . . 4 . Lost Part 80 | . . . . . . 80 Lost Ally 40 | . . . . . . 40 Squads Dispatched 2 | . 2 . . . . . Investigation 1 | . 1 . . . . . Extermination . | . . . . . . . Reinforcement 1 | . 1 . . . . . Assault . | . . . . . . . Garrison . | . . . . . . . Intercept . | . . . . . . . Searches Triggered . | . . . . . . . Construction Impeded . | . . . . . . . Haulers Reinforced . | . . . . . . . Active Scanning Responses . | . . . . . . . Cargo Convoy Interrupts . | . . . . . . . Stealth | -11 -10 -10 -10 -9 -8 -8 --------- Run | Yrd Mat Min Exi Min Mat Gar Distress Signals 1 | . 1 . . . . . Communications Jammed . | . . . . . . . Distress Signals . | . . . . . . . Times Spotted 29 | . 9 8 . . . 12 Peak Tracking Total 8 | . 3 2 . . . 8 Tactical Retreats 5 | . . 4 . . . 1 Traps | -11 -10 -10 -10 -9 -8 -8 ------- Run | Yrd Mat Min Exi Min Mat Gar Traps Triggered . | . . . . . . . Indirectly . | . . . . . . . Trap Hack Attempts . | . . . . . . . Triggered . | . . . . . . . Disarmed . | . . . . . . . Reprogrammed . | . . . . . . . Reused . | . . . . . . . Traps Extracted . | . . . . . . . Installed . | . . . . . . . Triggered . | . . . . . . . Machines | -11 -10 -10 -10 -9 -8 -8 ---------- Run | Yrd Mat Min Exi Min Mat Gar Machines Disabled 6 | . 2 . . . . 4 Max in Single Turn 2 | . 1 . . . . 2 Garrison Relay 4 | . . . . . . 4 Machines Repaired . | . . . . . . . Machines Dismantled . | . . . . . . . Machines Sabotaged . | . . . . . . . Overloaded Fab Kills . | . . . . . . . Hacking | -11 -10 -10 -10 -9 -8 -8 --------- Run | Yrd Mat Min Exi Min Mat Gar Machines Accessed 7 | . 2 . 4 . 1 . Terminals 2 | . 2 . . . . . Fabricators . | . . . . . . . Repair Stations . | . . . . . . . Recycling Units . | . . . . . . . Scanalyzers . | . . . . . . . Garrison Access 1 | . . . . . 1 . Total Hacks 9 | . 4 . 4 . 1 . Successful 8 | . 3 . 4 . 1 . Failed 1 | . 1 . . . . . Catastrophic . | . . . . . . . Database Lockouts . | . . . . . . . Manual 5 | . 5 . . . . . Terminals 4 | . 4 . . . . . Fabricators . | . . . . . . . Repair Stations . | . . . . . . . Recycling Units . | . . . . . . . Scanalyzers . | . . . . . . . Garrison Access 1 | . . . . . 1 . Terminal Hacks 4 | . . . 4 . . . Record 4 | . . . 4 . . . Fabricator Hacks . | . . . . . . . Repair Station Hacks . | . . . . . . . Recycling Unit Hacks . | . . . . . . . Scanalyzer . | . . . . . . . Garrison Access Hacks 1 | . . . . . 1 . Unlock Access 1 | . . . . . 1 . Unauthorized Hacks 3 | . 3 . . . . . Terminals 3 | . 3 . . . . . Botnet 2 | . 2 . . . . . Operators 1 | . 1 . . . . . Fabricators . | . . . . . . . Repair Stations . | . . . . . . . Recycling Units . | . . . . . . . Scanalyzers . | . . . . . . . Garrison Access . | . . . . . . . Data Cores Recovered . | . . . . . . . Used . | . . . . . . . Hacking Detections 3 | . 2 . . . 1 . Full Trace Events 1 | . 1 . . . . . Feedback Events . | . . . . . . . Feedback Blocked . | . . . . . . . Robot Schematics Acquired . | . . . . . . . Robots Built . | . . . . . . . Authchips . | . . . . . . . Time . | . . . . . . . Total Robot Build Rating . | . . . . . . . Part Schematics Acquired . | . . . . . . . Parts Built . | . . . . . . . Authchips . | . . . . . . . Time . | . . . . . . . Total Part Build Rating . | . . . . . . . Part Studies Acquired . | . . . . . . . Parts Repaired . | . . . . . . . Time . | . . . . . . . Parts Recycled . | . . . . . . . Recycled Matter . | . . . . . . . Retrieved Matter . | . . . . . . . Retrieved Components . | . . . . . . . Parts Scanalyzed . | . . . . . . . Part Schematics Acquired . | . . . . . . . Parts Damaged . | . . . . . . . Bothacking | -11 -10 -10 -10 -9 -8 -8 ------------ Run | Yrd Mat Min Exi Min Mat Gar Used RIF Installer . | . . . . . . . Robots Hacked . | . . . . . . . Non-combat . | . . . . . . . Combat . | . . . . . . . Robot Hacks Applied . | . . . . . . . Relay Couplers Released 16 | . . . . . . 16 Machine Destruction 16 | . . . . . . 16 Fabnet Peak Effective % . | . . . . . . . Robots Rewired . | . . . . . . . Allies Hacked 1 | . . . . . . 1 Hacks Repelled . | . . . . . . . Allies | -11 -10 -10 -10 -9 -8 -8 -------- Run | Yrd Mat Min Exi Min Mat Gar Total Allies 2 | . . . . 2 . . Largest Group 2 | . . . . 2 2 2 Highest-Rated Group 38 | . . . . 38 38 38 Highest-Rated Ally 31 | . . . . 31 31 31 Total Orders . | . . . . . . . Ally Attacks 5 | . . . . . . 5 Total Damage 52 | . . . . . . 52 Kills . | . . . . . . . Allies Corrupted 1 | . . . . . . 1 Allies Melted . | . . . . . . . Intel | -11 -10 -10 -10 -9 -8 -8 ------- Run | Yrd Mat Min Exi Min Mat Gar Active Infowar (turns) 2226 | 60 462 578 968 52 20 86 Seismic 2226 | 60 462 578 968 52 20 86 Robot Analysis Total . | . . . . . . . Derelict Logs Recovered 2 | . . 1 . 1 . . Drone Launches . | . . . . . . . Drone Recoveries . | . . . . . . . Exploration | -11 -10 -10 -10 -9 -8 -8 ------------- Run | Yrd Mat Min Exi Min Mat Gar Turns Passed 2496 | 175 462 578 968 52 20 241 Spaces Moved 1933 | 107 327 498 797 38 17 149 Core 17 | 11 . . . . . 6 Treads . | . . . . . . . Legs . | . . . . . . . Wheels 1815 | 96 327 498 797 38 17 42 Hover 98 | . . . . . . 98 Flight 3 | . . . . . . 3 Fastest Speed 50 | 50 90 90 95 125 125 56 Average Speed 107 | 87 92 104 120 125 125 93 Slowest Speed 500 | 95 95 110 125 125 125 500 Overloaded Moves . | . . . . . . . Propulsion Burnouts . | . . . . . . . Robots Hopped . | . . . . . . . Potential Cave-ins . | . . . . . . . Cave-ins Triggered . | . . . . . . . Exploration Rate (%) 40 | 4 39 94 92 31 3 21 Regions Visited 6 Branch Regions 3 Pre-discovered Areas . | . . . . . . . Known Exits Taken 1 | . . . . . 1 . Unknown Exits Taken 5 | 1 1 1 1 1 . . Scrap Searched 2 | . . 1 . 1 . . Spaces Dug . | . . . . . . . Terrain Destroyed 5 | . 5 . . . . . Melee . | . . . . . . . Projectile . | . . . . . . . AOE 5 | . 5 . . . . . Terrain Rammed . | . . . . . . . Walls Destroyed . | . . . . . . . Machines Disabled . | . . . . . . . Actions | -11 -10 -10 -10 -9 -8 -8 --------- Run | Yrd Mat Min Exi Min Mat Gar Total 2255 | 167 467 541 808 42 16 214 Wait 172 | 29 102 29 5 5 . 2 Move 1927 | 106 326 497 796 37 16 149 Hop . | . . . . . . . Pick Up 42 | 14 8 3 1 . . 16 Fast Attach . | . . . . . . . Attach 25 | 7 1 . 2 . . 15 Detach 2 | . . . 2 . . . Swap 9 | 1 3 3 1 . . 1 Drop 16 | . 8 2 1 . . 5 Fire 61 | 10 19 7 . . . 25 Melee . | . . . . . . . Ram 1 | . . . . . . 1 Kick . | . . . . . . . Crush . | . . . . . . . Escape Stasis . | . . . . . . . Rewire . | . . . . . . . Trap . | . . . . . . . Miscellaneous . | . . . . . . . Route ------- -11/Scrapyard -10/Materials (discovered 2 exits: [*Mat] / [*Min]) -10/Mines (discovered 3 exits: [*Mat x2] / *Exi) -10/Exiles (discovered 2 exits: [*Min x2]) -9/Mines -8/Materials -8/Garrison History --------- Turn | Location | Event 2 | -11/Scrapyard | Met Revision 17 7 | -11/Scrapyard | Discovered new exit (range 16) 176 | -11/Scrapyard | Entered Materials 284 | -10/Materials | Discovered new exit (range 14) 305 | -10/Materials | Build established: Mutant 362 | -10/Materials | Discovered new exit (range 15) 638 | -10/Materials | Entered Mines 858 | -10/Mines | Found a hidden stash of uninstalled traps 1007 | -10/Mines | Discovered new exit (range 16) 1043 | -10/Mines | Deemed a non-threat by the Exiles lab entrance 1044 | -10/Mines | Discovered new exit (range 5) 1078 | -10/Mines | Learned Materials trap positions 1137 | -10/Mines | Discovered new exit (range 14) 1216 | -10/Mines | Entered Exiles 1216 | -10/Exiles | Found Exiles lab abandoned 1231 | -10/Exiles | Discovered new exit (range 15) 1825 | -10/Exiles | Discovered new exit (range 10) 2184 | -10/Exiles | Entered Mines 2199 | -9/Mines | Learned Materials interactive machine intel 2218 | -9/Mines | Discovered new exit (range 11) 2236 | -9/Mines | Entered Materials 2236 | -8/Materials | Accompanied by 2 allies 2236 | -8/Materials | Evolved 4 slots: Propulsion x2, Utility x2 2237 | -8/Materials | Loaded intel: 20 trap records 2238 | -8/Materials | Loaded intel: 18 interactive machine locations 2241 | -8/Materials | Led the pair of lost Derelicts to an unsafe place 2255 | -8/Materials | Identified exit to Garrison 2256 | -8/Materials | Entered Garrison 2256 | -8/Garrison | Accompanied by 2 allies 2298 | -8/Garrison | Garrison Relay disabled 2298 | -8/Garrison | Garrison Relay disabled 2299 | -8/Garrison | Garrison Relay disabled 2348 | -8/Garrison | Core integrity fell below 50% 2348 | -8/Garrison | System corruption reached 10% 2373 | -8/Garrison | Lost 10 parts (1p4n1u4w) 2377 | -8/Garrison | Garrison Relay disabled 2470 | -8/Garrison | Triggered checkpoint 2497 | -8/Garrison | Self-destructed Last Messages --------------- 02418_ Acquired Gravmag System. 02420_ Acquired Shock Rifle. 02423_ Acquired 10 matter. 02424_ Dropped Shock Rifle. 02424_ Acquired Shock Rifle. 02425_ Dropped Shock Rifle. 02425_ Acquired Shock Rifle. 02426_ Dropped Shock Rifle. 02427_ Acquired Target Analyzer. 02429_ Relay Coupler [Grunt] fries itself. 02430_ Acquired Shock Rifle. 02431_ Acquired 20 matter. 02434_ Acquired Shock Rifle. 02442_ System corrupted: Matter fused (-8). 02461_ G9IIFTC